TIPOLOGIA;NATURA_ECONOMICA;BENEFICIARIO;DATA_PAGAMENTO;IMPORTO
Spese correnti - Altre spese correnti;Premi di assicurazione contro i danni;AON SPA;16/02/2024;49.435,81
Spese correnti - Trasferimenti correnti;Borse di studio, dottorati di ricerca e contratti di formazione specialistica area medica;130880;03/01/2024;1.063,75
Spese correnti - Trasferimenti correnti;Borse di studio, dottorati di ricerca e contratti di formazione specialistica area medica;139278;15/01/2024;319,56
Spese correnti - Trasferimenti correnti;Borse di studio, dottorati di ricerca e contratti di formazione specialistica area medica;139278;16/02/2024;600
Spese correnti - Trasferimenti correnti;Borse di studio, dottorati di ricerca e contratti di formazione specialistica area medica;144408;15/01/2024;600
Spese correnti - Trasferimenti correnti;Borse di studio, dottorati di ricerca e contratti di formazione specialistica area medica;144408;16/02/2024;600
Spese correnti - Trasferimenti correnti;Borse di studio, dottorati di ricerca e contratti di formazione specialistica area medica;158303;03/01/2024;772,5
Spese correnti - Trasferimenti correnti;Borse di studio, dottorati di ricerca e contratti di formazione specialistica area medica;160843;15/01/2024;600
Spese correnti - Trasferimenti correnti;Borse di studio, dottorati di ricerca e contratti di formazione specialistica area medica;160843;16/02/2024;600
Spese correnti - Trasferimenti correnti;Borse di studio, dottorati di ricerca e contratti di formazione specialistica area medica;162931;24/01/2024;999
Spese correnti - Trasferimenti correnti;Borse di studio, dottorati di ricerca e contratti di formazione specialistica area medica;251106;08/01/2024;2.127,50
Spese correnti - Trasferimenti correnti;Borse di studio, dottorati di ricerca e contratti di formazione specialistica area medica;251737;09/02/2024;743,16
Spese correnti - Trasferimenti correnti;Borse di studio, dottorati di ricerca e contratti di formazione specialistica area medica;251833;03/01/2024;1.628,26
Spese correnti - Trasferimenti correnti;Borse di studio, dottorati di ricerca e contratti di formazione specialistica area medica;252336;22/01/2024;999,57
Spese correnti - Trasferimenti correnti;Borse di studio, dottorati di ricerca e contratti di formazione specialistica area medica;252586;03/01/2024;1.139,78
Spese correnti - Trasferimenti correnti;Borse di studio, dottorati di ricerca e contratti di formazione specialistica area medica;252846;09/02/2024;891,79
Spese correnti - Trasferimenti correnti;Borse di studio, dottorati di ricerca e contratti di formazione specialistica area medica;253270;22/01/2024;625
Spese correnti - Trasferimenti correnti;Borse di studio, dottorati di ricerca e contratti di formazione specialistica area medica;253788;09/02/2024;2.578,72
Spese correnti - Trasferimenti correnti;Borse di studio, dottorati di ricerca e contratti di formazione specialistica area medica;254006;22/01/2024;1.743,87
Spese correnti - Trasferimenti correnti;Borse di studio, dottorati di ricerca e contratti di formazione specialistica area medica;254733;03/01/2024;1.292,59
Spese correnti - Trasferimenti correnti;Borse di studio, dottorati di ricerca e contratti di formazione specialistica area medica;255613;03/01/2024;3.027,50
Spese correnti - Trasferimenti correnti;Borse di studio, dottorati di ricerca e contratti di formazione specialistica area medica;258244;09/01/2024;1.063,75
Spese correnti - Trasferimenti correnti;Borse di studio, dottorati di ricerca e contratti di formazione specialistica area medica;259709;16/02/2024;1.513,75
Spese correnti - Trasferimenti correnti;Borse di studio, dottorati di ricerca e contratti di formazione specialistica area medica;259779;17/01/2024;1.063,75
Spese correnti - Trasferimenti correnti;Borse di studio, dottorati di ricerca e contratti di formazione specialistica area medica;261305;09/01/2024;918,37
Spese correnti - Trasferimenti correnti;Borse di studio, dottorati di ricerca e contratti di formazione specialistica area medica;261471;09/01/2024;646,3
Spese correnti - Trasferimenti correnti;Borse di studio, dottorati di ricerca e contratti di formazione specialistica area medica;261865;09/01/2024;381,99
Spese correnti - Trasferimenti correnti;Borse di studio, dottorati di ricerca e contratti di formazione specialistica area medica;262041;03/01/2024;814,13
Spese correnti - Trasferimenti correnti;Borse di studio, dottorati di ricerca e contratti di formazione specialistica area medica;262202;09/01/2024;1.063,75
Spese correnti - Trasferimenti correnti;Borse di studio, dottorati di ricerca e contratti di formazione specialistica area medica;SOG60848;09/02/2024;999
Spese correnti - Acquisto di beni e servizi;Altri servizi;MINISTERO DELLA GIUSTIZIA;16/02/2024;433
Spese correnti - Acquisto di beni e servizi;Altri servizi;BUSITALIA - SITA NORD S.R.L.;23/01/2024;49.896,00
Spese correnti - Acquisto di beni e servizi;Altri servizi;SERVIZI ASSOCIATI SOC. COOP.;22/01/2024;2.550,21
Spese correnti - Acquisto di beni e servizi;Altri servizi;SERVIZI ASSOCIATI SOC. COOP.;16/02/2024;2.550,21
Spese correnti - Acquisto di beni e servizi;Altri servizi;ORDINE DEGLI AVVOCATI DI PERUGIA;09/02/2024;220
Spese correnti - Acquisto di beni e servizi;Altri servizi;SOPRA IL MURO SOC. COOPERATIVA SOCIALE;30/01/2024;5.978,00
Spese correnti - Acquisto di beni e servizi;Utenze e canoni;FASTWEB;22/01/2024;2.328,77
Spese correnti - Acquisto di beni e servizi;Utenze e canoni;A2A ENERGIA SPA;01/02/2024;15.930,98
Spese correnti - Acquisto di beni e servizi;Utenze e canoni;A2A ENERGIA SPA;13/02/2024;14.781,09
Spese correnti - Acquisto di beni e servizi;Utenze e canoni;AGSM ENERGIA SPA;24/01/2024;10.990,98
Spese correnti - Acquisto di beni e servizi;Utenze e canoni;AGSM ENERGIA SPA;30/01/2024;32.069,01
Spese correnti - Acquisto di beni e servizi;Utenze e canoni;TELECOM ITALIA SPA;15/01/2024;365,12
Spese correnti - Acquisto di beni e servizi;Utenze e canoni;TELECOM ITALIA SPA;13/02/2024;2.446,88
Spese correnti - Acquisto di beni e servizi;Utenze e canoni;UMBRA ACQUE S.P.A.;17/01/2024;6.584,71
Spese correnti - Acquisto di beni e servizi;Utenze e canoni;UNIVERSITA' DEGLI STUDI DI PERUGIA;16/02/2024;6.738,13
Spese correnti - Acquisto di beni e servizi;Utenze e canoni;SII S.C.P.A. SERVIZIO IDRICO INTEGRATO;09/02/2024;476,27
Spese correnti - Acquisto di beni e servizi;Altri beni di consumo;IP ITALIANA PETROLI S.P.A.;09/02/2024;178,32
Spese correnti - Acquisto di beni e servizi;Servizi amministrativi;FLORINDI EMANUELE;22/01/2024;2.030,00
Spese correnti - Acquisto di beni e servizi;Servizi amministrativi;EUREMA SRL- CENTRO MEDIA;14/02/2024;2.690,52
Spese correnti - Acquisto di beni e servizi;Servizi di ristorazione;TESORERIA;23/01/2024;6.050,11
Spese correnti - Acquisto di beni e servizi;Servizi di ristorazione;MET 4.0 SRL;05/02/2024;2.602,82
Spese correnti - Acquisto di beni e servizi;Servizi di ristorazione;CIRFOOD S.C.;17/01/2024;5.490,52
Spese correnti - Acquisto di beni e servizi;Servizi di ristorazione;CIRFOOD S.C.;22/01/2024;38.076,53
Spese correnti - Acquisto di beni e servizi;Servizi di ristorazione;CIRFOOD S.C.;14/02/2024;31.864,60
Spese correnti - Acquisto di beni e servizi;Servizi di ristorazione;ALL FOOD S.P.A.;17/01/2024;7.030,55
Spese correnti - Acquisto di beni e servizi;Servizi di ristorazione;AUTHENTICA S.P.A.;09/02/2024;10.381,17
Spese correnti - Acquisto di beni e servizi;Servizi di ristorazione;CAMST SOOC. COOP. A.R.L.;17/01/2024;135.621,95
Spese correnti - Acquisto di beni e servizi;Servizi di ristorazione;CAMST SOOC. COOP. A.R.L.;25/01/2024;5.387,52
Spese correnti - Acquisto di beni e servizi;Servizi di ristorazione;CAMST SOOC. COOP. A.R.L.;14/02/2024;153.647,08
Spese correnti - Acquisto di beni e servizi;Servizi di ristorazione;ELIOR RISTORAZIONE S.P.A.;22/01/2024;21.066,68
Spese correnti - Acquisto di beni e servizi;Servizi di ristorazione;ELIOR RISTORAZIONE S.P.A.;09/02/2024;6.862,35
Spese correnti - Acquisto di beni e servizi;Servizi di ristorazione;TRATTORIA DEI CUCCUGNAI SRLS;22/01/2024;6.953,65
Spese correnti - Acquisto di beni e servizi;Servizi di ristorazione;SERENISSIMA RISTORAZIONE S.P.A.;22/01/2024;17.182,73
Spese correnti - Acquisto di beni e servizi;Servizi di ristorazione;SERENISSIMA RISTORAZIONE S.P.A.;14/02/2024;37.793,28
Spese correnti - Acquisto di beni e servizi;Servizi di ristorazione;SERENISSIMA RISTORAZIONE S.P.A.;16/02/2024;4.931,67
Spese correnti - Acquisto di beni e servizi;Utilizzo di beni di terzi;ATER UMBRIA;14/02/2024;376.715,15
Spese correnti - Acquisto di beni e servizi;Utilizzo di beni di terzi;OLIVETTI S.P.A.;01/02/2024;559,28
Spese correnti - Acquisto di beni e servizi;Utilizzo di beni di terzi;PC SERVICE CENTRO ASSISTENZA TECNICA;22/01/2024;1.620,16
Spese correnti - Acquisto di beni e servizi;Utilizzo di beni di terzi;PC SERVICE CENTRO ASSISTENZA TECNICA;13/02/2024;1.193,16
Spese correnti - Acquisto di beni e servizi;Utilizzo di beni di terzi;PC SERVICE CENTRO ASSISTENZA TECNICA;14/02/2024;78,08
Spese correnti - Acquisto di beni e servizi;Utilizzo di beni di terzi;KYOCERA DOCUMENT SOLUTIONS ITALIA S.P.A.;30/01/2024;133,41
Spese correnti - Acquisto di beni e servizi;Utilizzo di beni di terzi;CENTRO TECNOCONTABILE S.N.C. DI CECCACCI G. & M.;22/01/2024;60
Spese correnti - Acquisto di beni e servizi;Giornali, riviste e pubblicazioni;WOLTERS KLUWER ITALIA  S.R.L.;09/02/2024;2.080,00
Spese correnti - Acquisto di beni e servizi;Manutenzione ordinaria e riparazioni;VEGA TECNO SERVICE SRL;23/01/2024;37.624,09
Spese correnti - Acquisto di beni e servizi;Manutenzione ordinaria e riparazioni;VERSIGLIONI & PAGANA S.N.C.;23/01/2024;714,92
Spese correnti - Acquisto di beni e servizi;Manutenzione ordinaria e riparazioni;VERSIGLIONI & PAGANA S.N.C.;14/02/2024;3.053,66
Spese correnti - Acquisto di beni e servizi;Manutenzione ordinaria e riparazioni;REKEEP SPA SOCIETA A SOCIO UNICO-SOGG. DIREZ. E COORD. DI MANUTENCOOP SOC. COOP.;23/01/2024;36.148,63
Spese correnti - Acquisto di beni e servizi;Prestazioni professionali e specialistiche;SCIUTO DANIELE;08/02/2024;1.126,59
Spese correnti - Acquisto di beni e servizi;Prestazioni professionali e specialistiche;CORTESI FRANCESCA;10/01/2024;2.000,00
Spese correnti - Acquisto di beni e servizi;Servizi informatici e di telecomunicazioni;INAZ;14/02/2024;9.632,25
Spese correnti - Acquisto di beni e servizi;Servizi informatici e di telecomunicazioni;XSTREAM SRL;09/02/2024;4.489,77
Spese correnti - Acquisto di beni e servizi;Servizi informatici e di telecomunicazioni;RIMEP S.P.A.;22/01/2024;329,4
Spese correnti - Acquisto di beni e servizi;Servizi informatici e di telecomunicazioni;SINAPSI S.R.L.;22/01/2024;12.244,97
Spese correnti - Acquisto di beni e servizi;Servizi informatici e di telecomunicazioni;SINAPSI S.R.L.;23/01/2024;251,49
Spese correnti - Acquisto di beni e servizi;Servizi informatici e di telecomunicazioni;SINAPSI S.R.L.;13/02/2024;1.094,34
Spese correnti - Acquisto di beni e servizi;Servizi informatici e di telecomunicazioni;SYNTHESIS3 SRL;14/02/2024;12.200,00
Spese correnti - Acquisto di beni e servizi;Servizi informatici e di telecomunicazioni;BACHIORRI SAURO;22/01/2024;1.200,00
Spese correnti - Acquisto di beni e servizi;Servizi informatici e di telecomunicazioni;BACHIORRI SAURO;01/02/2024;1.200,00
Spese correnti - Acquisto di beni e servizi;Servizi informatici e di telecomunicazioni;IN4MATIC S.R.L.;13/02/2024;72.500,00
Spese correnti - Acquisto di beni e servizi;Servizi informatici e di telecomunicazioni;TELECOM ITALIA SPA;13/02/2024;232,29
Spese correnti - Acquisto di beni e servizi;Servizi informatici e di telecomunicazioni;TELPRO DI LUCIANO PESCARI;15/01/2024;1.709,81
Spese correnti - Acquisto di beni e servizi;Servizi informatici e di telecomunicazioni;TECNOTEL SERVIZI TECNOLOGICI SRL;14/02/2024;5.950,79
Spese correnti - Acquisto di beni e servizi;Servizi informatici e di telecomunicazioni;TISCALI ITALIA S.P.A. CON SOCIO UNICO;22/01/2024;442,86
Spese correnti - Acquisto di beni e servizi;Servizi informatici e di telecomunicazioni;TISCALI ITALIA S.P.A. CON SOCIO UNICO;16/02/2024;442,86
Spese correnti - Acquisto di beni e servizi;Servizi ausiliari per il funzionamento dell'ente;TELEPASS S.P.A.;10/01/2024;2,61
Spese correnti - Acquisto di beni e servizi;Servizi ausiliari per il funzionamento dell'ente;TELEPASS S.P.A.;09/02/2024;2,61
Spese correnti - Acquisto di beni e servizi;Servizi ausiliari per il funzionamento dell'ente;JOB SOLUTION SOC. COOP.;24/01/2024;18.691,27
Spese correnti - Acquisto di beni e servizi;Servizi ausiliari per il funzionamento dell'ente;GRUPPO SERVIZI ASSOCIATI SPA;18/01/2024;12.896,14
Spese correnti - Acquisto di beni e servizi;Servizi ausiliari per il funzionamento dell'ente;GRUPPO SERVIZI ASSOCIATI SPA;14/02/2024;12.910,91
Spese correnti - Acquisto di beni e servizi;Servizi ausiliari per il funzionamento dell'ente;SERVIZI ASSOCIATI SOC. COOP.;11/01/2024;1.037,00
Spese correnti - Acquisto di beni e servizi;Servizi ausiliari per il funzionamento dell'ente;SERVIZI ASSOCIATI SOC. COOP.;22/01/2024;36.864,22
Spese correnti - Acquisto di beni e servizi;Servizi ausiliari per il funzionamento dell'ente;SERVIZI ASSOCIATI SOC. COOP.;16/02/2024;37.568,08
Spese correnti - Acquisto di beni e servizi;Servizi ausiliari per il funzionamento dell'ente;ASSOCIAZIONE CULTURALE L'OFFICINA;23/01/2024;12.194,51
Spese correnti - Acquisto di beni e servizi;Servizi ausiliari per il funzionamento dell'ente;UNITATIS REDINTEGRATIO SOC. COOP.;22/01/2024;14.990,99
Spese correnti - Acquisto di beni e servizi;Servizi ausiliari per il funzionamento dell'ente;UNITATIS REDINTEGRATIO SOC. COOP.;09/02/2024;14.990,99
Spese correnti - Acquisto di beni e servizi;Servizi ausiliari per il funzionamento dell'ente;ASSOCIAZIONE DI PROMOZIONE SOCIALE WORLD;17/01/2024;7.458,71
Spese correnti - Acquisto di beni e servizi;Servizi ausiliari per il funzionamento dell'ente;ASSOCIAZIONE DI PROMOZIONE SOCIALE WORLD;16/02/2024;7.458,71
Spese correnti - Acquisto di beni e servizi;Organi e incarichi istituzionali dell'amministrazione;TOSTI MARCO;13/02/2024;6.543,97
Spese correnti - Acquisto di beni e servizi;Organi e incarichi istituzionali dell'amministrazione;SINERGIE STUDIO ASSOCIATO;13/02/2024;9.348,53
Spese correnti - Acquisto di beni e servizi;Organizzazione eventi, pubblicita' e servizi per trasferta;BIASI MARINA;05/02/2024;980
Spese correnti - Acquisto di beni e servizi;Acquisto di servizi per formazione e addestramento del personale dell'ente;ALBERTO BARBIERO;14/02/2024;1.522,56
Spese correnti - Acquisto di beni e servizi;Acquisto di servizi per formazione e addestramento del personale dell'ente;SCUOLA UMBRA DI AMMINISTRAZIONE PUBBLICA;10/01/2024;1.044,00
Spese correnti - Redditi da lavoro dipendente;Retribuzioni in denaro;TESORERIA;25/01/2024;38.607,42
Spese correnti - Redditi da lavoro dipendente;Retribuzioni in denaro;TESORERIA;30/01/2024;94.711,19
Spese correnti - Redditi da lavoro dipendente;Altre spese per il personale;EDENRED ITALIA SRL;10/01/2024;116,98
Spese correnti - Redditi da lavoro dipendente;Contributi sociali effettivi a carico dell'ente;FONDO PERSEO SIRIO;25/01/2024;97,66
Spese correnti - Imposte e tasse a carico dell'ente;Imposta di registro e di bollo;TESORERIA;13/02/2024;2.189,98
Spese correnti - Imposte e tasse a carico dell'ente;Imposta di registro e di bollo;UFFICIO ENTRATE AGENZIA ENTRATE;15/01/2024;200
Spese correnti - Imposte e tasse a carico dell'ente;Tassa e/o tariffa smaltimento rifiuti solidi urbani;COMUNE DI PERUGIA;13/02/2024;76.008,05
Spese correnti - Imposte e tasse a carico dell'ente;Tassa e/o tariffa smaltimento rifiuti solidi urbani;A.S.M.TERNI S.P.A.;15/01/2024;74,24
Spese correnti - Imposte e tasse a carico dell'ente;Imposte, tasse e proventi assimilati a carico dell'ente n.a.c.;RAI RADIOTELEVISIONE ITALIANA S.P.A.;13/02/2024;1.885,22
Spese correnti - Imposte e tasse a carico dell'ente;Imposte, tasse e proventi assimilati a carico dell'ente n.a.c.;ANAC AUTORITA' NAZIONALE ANTICORRUZIONE;13/02/2024;285
Spese correnti - Rimborsi e poste correttive delle entrate;Rimborsi per spese di personale (comando, distacco, fuori ruolo, convenzioni, ecc...) ;AZIENDA U.S.L. UMBRIA 1;10/01/2024;18.578,68
Spese per conto terzi e partite di giro - Uscite per conto terzi;Restituzione di depositi cauzionali o contrattuali di terzi;145250;13/02/2024;150
Spese per conto terzi e partite di giro - Uscite per conto terzi;Restituzione di depositi cauzionali o contrattuali di terzi;150088;13/02/2024;150
Spese per conto terzi e partite di giro - Uscite per conto terzi;Restituzione di depositi cauzionali o contrattuali di terzi;155725;13/02/2024;150
Spese per conto terzi e partite di giro - Uscite per conto terzi;Restituzione di depositi cauzionali o contrattuali di terzi;159760;13/02/2024;150
Spese per conto terzi e partite di giro - Uscite per conto terzi;Restituzione di depositi cauzionali o contrattuali di terzi;160078;13/02/2024;150
Spese per conto terzi e partite di giro - Uscite per conto terzi;Restituzione di depositi cauzionali o contrattuali di terzi;160090;16/02/2024;150
Spese per conto terzi e partite di giro - Uscite per conto terzi;Restituzione di depositi cauzionali o contrattuali di terzi;160509;13/02/2024;150
Spese per conto terzi e partite di giro - Uscite per conto terzi;Restituzione di depositi cauzionali o contrattuali di terzi;163947;13/02/2024;150
Spese per conto terzi e partite di giro - Uscite per conto terzi;Restituzione di depositi cauzionali o contrattuali di terzi;251823;13/02/2024;150
Spese per conto terzi e partite di giro - Uscite per conto terzi;Restituzione di depositi cauzionali o contrattuali di terzi;251915;13/02/2024;150
Spese per conto terzi e partite di giro - Uscite per conto terzi;Restituzione di depositi cauzionali o contrattuali di terzi;255571;13/02/2024;150
Spese per conto terzi e partite di giro - Uscite per conto terzi;Restituzione di depositi cauzionali o contrattuali di terzi;258380;13/02/2024;150
Spese per conto terzi e partite di giro - Uscite per conto terzi;Restituzione di depositi cauzionali o contrattuali di terzi;260443;13/02/2024;150
Spese per conto terzi e partite di giro - Uscite per conto terzi;Restituzione di depositi cauzionali o contrattuali di terzi;262998;13/02/2024;150
Spese per conto terzi e partite di giro - Uscite per partite di giro;Spese non andate a buon fine;160090;13/02/2024;150
Spese per conto terzi e partite di giro - Uscite per partite di giro;Spese non andate a buon fine;CAMST SOOC. COOP. A.R.L.;03/01/2024;298,31
Spese per conto terzi e partite di giro - Uscite per partite di giro;Costituzione fondi economali e carte aziendali;ECONOMO ADISU;16/01/2024;8.000,00
Spese per conto terzi e partite di giro - Uscite per partite di giro;Versamento delle ritenute per scissione contabile IVA (split payment);TESORERIA;17/01/2024;22.944,88
Spese per conto terzi e partite di giro - Uscite per partite di giro;Altri versamenti di ritenute al personale dipendente per conto di terzi;I.N.P.D.A.P.;25/01/2024;457,43
Spese per conto terzi e partite di giro - Uscite per partite di giro;Altri versamenti di ritenute al personale dipendente per conto di terzi;FINANCIT S.P.A.;25/01/2024;230
Spese per conto terzi e partite di giro - Uscite per partite di giro;Altri versamenti di ritenute al personale dipendente per conto di terzi;ITALCREDI S.P.A.;25/01/2024;325
Spese per conto terzi e partite di giro - Uscite per partite di giro;Altri versamenti di ritenute al personale dipendente per conto di terzi;AGOS DUCATO S.P.A.;25/01/2024;200
Spese per conto terzi e partite di giro - Uscite per partite di giro;Altri versamenti di ritenute al personale dipendente per conto di terzi;CISL F.P. UMBRIA PG;25/01/2024;26,95
Spese per conto terzi e partite di giro - Uscite per partite di giro;Altri versamenti di ritenute al personale dipendente per conto di terzi;UNICREDIT BANCA S.P.A.;25/01/2024;180
Spese per conto terzi e partite di giro - Uscite per partite di giro;Altri versamenti di ritenute al personale dipendente per conto di terzi;BIBANCA GRUPPO BPER BANCA;25/01/2024;250
Spese per conto terzi e partite di giro - Uscite per partite di giro;Altri versamenti di ritenute al personale dipendente per conto di terzi;FUNZIONE PUBBLICA C.G.I.L UMBRIA;25/01/2024;14,26
Spese per conto terzi e partite di giro - Uscite per partite di giro;Altri versamenti di ritenute al personale dipendente per conto di terzi;UIL F.P.L.FEDERAZIONE POTERI LOCALI;25/01/2024;28,52
Spese per conto terzi e partite di giro - Uscite per partite di giro;Altri versamenti di ritenute al personale dipendente per conto di terzi;ASSOCIAZIONE RICREATIVA CULTURALE A.R.C.;25/01/2024;2
Spese per conto terzi e partite di giro - Uscite per partite di giro;Altri versamenti di ritenute al personale dipendente per conto di terzi;C.S.A. REGIONI AUTONOMIE LOCALI  CISAL FPC;25/01/2024;12,48
Spese per conto terzi e partite di giro - Uscite per partite di giro;Altri versamenti di ritenute al personale dipendente per conto di terzi;UNIONE NAZIONALE AVVOCATI ENTI PUBBLICI UNAEP;25/01/2024;13
Spese per conto terzi e partite di giro - Uscite per partite di giro;Altri versamenti di ritenute al personale dipendente per conto di terzi;C.G.I.L.COMPRENSORIO DI PERUGIA CAMERA DEL LAVORO INCA F.P.;25/01/2024;112,4
Spese per conto terzi e partite di giro - Uscite per partite di giro;Versamenti di ritenute previdenziali e assistenziali su Redditi da lavoro dipendente riscosse per conto terzi;FONDO PERSEO SIRIO;25/01/2024;97,66
Spese in conto capitale - Investimenti fissi lordi e acquisto di terreni;Hardware;SINAPSI S.R.L.;22/01/2024;174,63
Spese in conto capitale - Investimenti fissi lordi e acquisto di terreni;Hardware;SINAPSI S.R.L.;23/01/2024;114,51
Spese in conto capitale - Investimenti fissi lordi e acquisto di terreni;Software;SYNTHESIS3 SRL;14/02/2024;3.050,00
Spese in conto capitale - Investimenti fissi lordi e acquisto di terreni;Software;IN4MATIC S.R.L.;13/02/2024;20.220,00
Spese in conto capitale - Investimenti fissi lordi e acquisto di terreni;Software;IN4MATIC S.R.L.;14/02/2024;5.000,00
Spese in conto capitale - Investimenti fissi lordi e acquisto di terreni;Beni immobili;TELPRO DI LUCIANO PESCARI;15/01/2024;480,09
